{"text_format":"1","workbook":"xlsx","n_sheets":1,"sheets":["závěrečné vyúčtování a zpráva"],"not_rendered":{"charts":0,"images":2,"macros":1,"external_links":0,"defined_names":8,"comments":1,"pivot_tables":0},"unopened":[],"bounds":{"document_bytes":16777216,"sheet_cells":100000,"rows_first":2000,"rows_last":500,"rows_between":2000,"halvings":0,"cell_chars":16384,"cell_head_chars":4096},"cells_cut":0,"cells_raw":0,"read":"whole","date_system":"1900"}

{"sheet":"závěrečné vyúčtování a zpráva","index":0,"n_rows":105,"n_cols":26,"rows_kept":105,"cut":false,"hidden":false,"merged":[[72,8,74,8],[104,1,104,6],[56,0,56,2],[55,6,55,7],[56,6,56,7],[99,0,99,7],[79,0,85,7],[88,0,88,2],[88,3,88,4],[88,6,88,7],[90,6,90,7],[93,0,93,4],[6,0,6,7],[8,0,8,3],[8,4,8,7],[9,0,9,3],[9,4,9,7],[11,0,11,3],[11,4,11,7],[12,0,12,3],[12,4,12,7],[13,0,13,3],[13,4,13,7],[15,0,15,3],[15,4,15,7],[16,0,16,3],[16,4,16,7],[17,0,17,3],[17,5,17,7],[19,0,19,3],[20,0,20,3],[21,0,21,3],[19,5,19,7],[21,5,21,7],[93,5,93,7],[90,0,90,5],[95,0,95,2],[25,0,49,7],[53,0,53,2],[53,6,53,7],[54,0,54,2],[54,6,54,7],[55,0,55,2],[72,0,72,4]]}
[]
[]
[]
[]
[]
[]
["Závěrečné vyúčtování / vypořádání projektu podpořeného \nz Dotačního fondu Libereckého kraje a Závěrečná zpráva o realizaci projektu"]
[]
["Program (název a číslo):",null,null,null,null,null,null,null,"Vyplnění žlutých polí je povinné (podbarvení po zadání textu zmizí)."]
["Název projektu:"]
[]
["Název příjemce: "]
["IČO příjemce:"]
["Bankovní spojení příjemce:",null,null,null,null,null,null,null,"Zadejte číslo bankovního účtu včetně kódu banky."]
[]
["Smlouva číslo: ",null,null,null,"OLP/xxx/20xx",null,null,null,"Zadejte číslo smlouvy poskytovatele."]
["Termín realizace projektu:"]
["Celková výše způsobilých výdajů vynaložená příjemcem na projekt -",null,null,null,"v Kč:"]
["Schválená výše dotace dle smlouvy - ",null,null,null,"v Kč:",null,"v %:",null,"Opište údaje (Kč i %) ze smlouvy."]
["Finanční prostředky doposud vyplacené příjemci z rozpočtu poskytovatele -",null,null,null,"v Kč:",null,null,null,"= výše zálohy dotace vyplacené na tento projekt"]
["Výše dotace dle skutečnosti -  ",null,null,null,"v Kč:",{"$f":"IF(F18*H19%>F19,F19,F18*H19%)","v":0},"v %:",{"$f":"F21/F18*100","v":{"$error":"#DIV/0!"}}]
["Do rozpočtu poskytovatele bude vráceno -",null,null,null,"v Kč:",{"$f":"IF(F20-F21<0,0,F20-F21)","v":0},null,null,"informace pro Vás - bude Vám doplaceno:",{"$f":"F21-F20","v":0}]
[]
["Popis realizace projektu:"]
["(popište činnosti v rámci projektu realizované v termínu realizace projektu - jak byl projekt zrealizován)"]
[null,null,null,null,null,null,null,null,"Pro odřádkování použijte levý ALT + ENTER."]
[]
[]
[]
[]
[]
[]
[]
[]
[]
[]
[]
[]
[]
[]
[]
[]
[]
[]
[]
[]
[]
[]
[]
[]
[]
["Splnění závazných parametrů:"]
[]
["parametr",null,null,"jednotka","hodnota \ndle smlouvy","dosažená hodnota","dokumenty\ndokládající splnění parametru1"]
[null,null,null,null,null,null,null,null,"Zadejte všechny parametry ze smlouvy.",null,null,null,null,null,null,null,null,null,null,null,null,null,null,null,null,{"$f":"G55","v":0}]
[null,null,null,null,null,null,null,null,null,null,null,null,null,null,null,null,null,null,null,null,null,null,null,null,null,0]
[]
[" ",null,null,null,null,null,null,null,null,null,null,null,null,null,null,null,null,null,null,null,null,null,null,null,null,0]
["Soupis účetních dokladů:",null,null,null,null,null,null,null,null,null,null,null,null,null,null,null,null,null,null,null,null,null,null,null,null,0]
[" ",null,null,null,null,null,null,null,null,null,null,null,null,null,null,null,null,null,null,null,null,null,null,null,null,0]
["p. č.","č. daňového, příp. účetního dokladu","datum vystavení dokladu/u plátců daně DUZP","datum úhrady daného výdaje","účel výdaje","celková \nčástka","z toho hrazeno \nz dotace","z toho hrazeno \nz jiných zdrojů",false,null,null,null,null,null,null,null,null,null,null,null,null,null,null,null,null,"z toho hrazeno \nz dotace"]
[{"$f":"ROW(A62)-ROW($D$61)","v":1},null,null,null,null,0,{"$f":"IF($I$61=TRUE,F62*$H$21%,0)","v":0},{"$f":"F62-G62","v":0},"Rozmyslete si, jakým způsobem budete chtít vyúčtovávat výdaje. ",null,null,null,null,null,null,null,null,null,null,null,null,null,null,null,null,{"$f":"G62","v":0}]
[2,null,null,null,null,0,0,{"$f":"F63-G63","v":0},"Jestliže U VŠECH DOKLADŮ automatickým poměrem % dle skutečnosti, ",null,null,null,null,null,null,null,null,null,null,null,null,null,null,null,null,0]
[3,null,null,null,null,0,0,{"$f":"F64-G64","v":0},"zaškrtněte růžové políčko a vyplňujte pouze celkovou částku.",null,null,null,null,null,null,null,null,null,null,null,null,null,null,null,null,0]
[4,null,null,null,null,0,0,{"$f":"F65-G65","v":0},null,null,null,null,null,null,null,null,null,null,null,null,null,null,null,null,null,0]
[5,null,null,null,null,0,0,{"$f":"F66-G66","v":0},null,null,null,null,null,null,null,null,null,null,null,null,null,null,null,null,null,0]
[6,null,null,null,null,0,0,{"$f":"F67-G67","v":0},"Jestliže budete chtít zadávat částky hrazené z dotace dle vlastního uvážení",null,null,null,null,null,null,null,null,null,null,null,null,null,null,null,null,0]
[7,null,null,null,null,0,0,{"$f":"F68-G68","v":0},"(poměru), můžete, ale pozor, přepíšete vzorec na automatický přepočet (sl. G).",null,null,null,null,null,null,null,null,null,null,null,null,null,null,null,null,0]
[8,null,null,null,null,0,0,{"$f":"F69-G69","v":0},null,null,null,null,null,null,null,null,null,null,null,null,null,null,null,null,null,0]
[9,null,null,null,null,0,0,{"$f":"F70-G70","v":0}]
[10,null,null,null,null,0,0,0]
[" ",null,null,null,null," "]
["CELKEM:",null,null,null,null,{"$f":"SUM(F62:F72)","v":0},{"$f":"SUM(G62:G72)","v":0},{"$f":"SUM(H62:H72)","v":0},"Pozor! Celková částka ze soupisu účetních dokladů SE NEROVNÁ výše uvedené částce způsobilých výdajů vynaložených příjemcem na projekt (v buňce E18)."]
[]
["Plátce DPH uvede částky bez DPH."]
["(pro tyto účely je za plátce DPH považována osoba, která uplatňuje nárok odpočtu DPH na vstupu)"]
[" "]
[" "]
["Doplňující informace (fotodokumentace projektu, články, publikace, CD a další):"]
[]
[]
[]
[null,null,null,null,null,null,null,null,"Pro odřádkování použijte levý ALT + ENTER."]
[]
[]
[]
[" "]
[" "]
["Zpracoval (jméno a kontakt):"]
[null,null,null,"jméno a příjmení",null,"telefon +420 …",null,"e-mail"]
["Podpis zpracovatele:"]
[null,null,null,null,null,null,null,"podpis","Zavináč -@- napíšete pomocí stisku kláves: pravý ALTGr + V."]
[]
["Schválil (jméno a podpis statutárního zástupce příjemce):",null,null,null,null,null,null,null,"Nezapomeňte vytištěný formulář podepsat."]
[" ",null,null,null,null,"jméno a příjmení",null,"podpis"]
["Datum:"]
[null,null,null,null,null,null,null,null,"Nezapomeňte nechat vytištěný formulář podepsat statutárním zástupcem."]
[" "]
[]
["[1] Příjemce uvede výčet dokladů přiložených k závěrečné zprávě o realizaci projektu, jimiž je prokazováno splnění závazných parametrů."]
[" "]
[" "]
[" ",null,null,null,null,null,null,null,"zpět na buňku G54 - dokumenty k parametrům"]
[" "]
[null,"Přílohy k Závěrečnému vyúčtování/vypořádání dle výše dotace a typu účetní evidence"]